Workbook

Sheet Anasayfa

Sheet Toplu Brütten Nete
A1: Personel Adı | B1: Aylık Brüt Maaşı | D1: İndirim Seçiniz | E1: %5 İndirim
A2: Ali | B2: 34262
A3: Veli | B3: 45508
A4: Ayşe | B4: 43543
A5: Fatma | B5: 48926

Sheet Toplu Netten Brüte
A1: Personel Adı | B1: Aylık Net Maaşı | D1: İndirim Seçiniz | E1: %0 İndirim
A2: Ali | B2: 31258
A3: Veli | B3: 41152
A4: Ayşe | B4: 51498
A5: Fatma | B5: 45659

Sheet %5 imalat
A1: dönem | B1: Brüt | C1: SSK İşçi | D1: İşsizlik İşçi | E1: Gelir Vegisi Matrahı | F1: Kümülatif GV Toplamı | G1: Hes Gelir Vergisi | H1: Hes Damga Vergisi | I1: asgari ücretin gelir vergisi | J1: asgari ücretin damga vergisi | K1: ödenecek gv | L1: ödenecek damga v | M1: Net | N1: SSK İşveren | O1: İşsizlik İşveren | P1: Toplam Maliyet
A2: Ocak | B2: 48926 | C2: =IF(B2>$B$16,$B$16*0.14,B2*0.14) -> 6849.64 | D2: =IF(B2>$B$16,$B$16*0.01,B2*0.01) -> 489.26 | E2: =B2-C2-D2 -> 41587.1 | F2: =E2 -> 41587.1 | G2: =HesaplaGV(E2,F2) -> 6238.065 | H2: =B2*7.59/1000 -> 371.34834 | I2: 4211.32 | J2: 250.7 | K2: =G2-I2 -> 2026.745 | L2: =H2-J2 -> 120.64834 | M2: =B2-C2-D2-K2-L2 -> 39439.70666 | N2: =IF('%5 imalat'!$B2>$B$16,$B$16*16.75/100,'%5 imalat'!$B2*16.75/100) -> 8195.105 | O2: =IF('%5 imalat'!$B2>$B$16,$B$16*0.02,'%5 imalat'!$B2*0.02) -> 978.52 | P2: =B2+'%5 imalat'!$N2+'%5 imalat'!$O2 -> 58099.625
A3: Şubat | B3: 48926 | C3: 6849.64 | D3: =IF(B3>$B$16,$B$16*0.01,B3*0.01) -> 489.26 | E3: =B3-C3-D3 -> 41587.1 | F3: =F2+E3 -> 83174.2 | G3: =HesaplaGV(E3,F3) -> 6238.065 | H3: =B3*7.59/1000 -> 371.34834 | I3: 4211.33 | J3: 250.7 | K3: =G3-I3 -> 2026.735 | L3: 120.64834 | M3: =B3-C3-D3-K3-L3 -> 39439.71666 | N3: =IF('%5 imalat'!$B3>$B$16,$B$16*16.75/100,'%5 imalat'!$B3*16.75/100) -> 8195.105 | O3: =IF('%5 imalat'!$B3>$B$16,$B$16*0.02,'%5 imalat'!$B3*0.02) -> 978.52 | P3: =B3+'%5 imalat'!$N3+'%5 imalat'!$O3 -> 58099.625
A4: Mart | B4: 48926 | C4: 6849.64 | D4: 489.26 | E4: 41587.1 | F4: =F3+E4 -> 124761.3 | G4: =HesaplaGV(E4,F4) -> 6238.065 | H4: 371.34834 | I4: 4211.32 | J4: 250.7 | K4: 2026.745 | L4: 120.64834 | M4: 39439.70666 | N4: =IF('%5 imalat'!$B4>$B$16,$B$16*16.75/100,'%5 imalat'!$B4*16.75/100) -> 8195.105 | O4: =IF('%5 imalat'!$B4>$B$16,$B$16*0.02,'%5 imalat'!$B4*0.02) -> 978.52 | P4: =B4+'%5 imalat'!$N4+'%5 imalat'!$O4 -> 58099.625
A5: Nisan | B5: 48926 | C5: 6849.64 | D5: 489.26 | E5: 41587.1 | F5: 166348.4 | G5: =HesaplaGV(E5,F5) -> 6238.065 | H5: 371.34834 | I5: 4211.33 | J5: 250.7 | K5: 2026.735 | L5: 120.64834 | M5: 39439.71666 | N5: =IF('%5 imalat'!$B5>$B$16,$B$16*16.75/100,'%5 imalat'!$B5*16.75/100) -> 8195.105 | O5: =IF('%5 imalat'!$B5>$B$16,$B$16*0.02,'%5 imalat'!$B5*0.02) -> 978.52 | P5: =B5+'%5 imalat'!$N5+'%5 imalat'!$O5 -> 58099.625
A6: Mayıs | B6: 48926 | C6: 6849.64 | D6: 489.26 | E6: 41587.1 | F6: 207935.5 | G6: =HesaplaGV(E6,F6) -> 7134.84 | H6: 371.34834 | I6: 4211.32 | J6: 250.7 | K6: 2923.52 | L6: 120.64834 | M6: 38542.93166 | N6: =IF('%5 imalat'!$B6>$B$16,$B$16*16.75/100,'%5 imalat'!$B6*16.75/100) -> 8195.105 | O6: =IF('%5 imalat'!$B6>$B$16,$B$16*0.02,'%5 imalat'!$B6*0.02) -> 978.52 | P6: =B6+'%5 imalat'!$N6+'%5 imalat'!$O6 -> 58099.625
A7: Haziran | B7: 48926 | C7: 6849.64 | D7: 489.26 | E7: 41587.1 | F7: 249522.6 | G7: =HesaplaGV(E7,F7) -> 8317.42 | H7: 371.34834 | I7: 4211.32 | J7: 250.7 | K7: 4106.1 | L7: 120.64834 | M7: 37360.35166 | N7: =IF('%5 imalat'!$B7>$B$16,$B$16*16.75/100,'%5 imalat'!$B7*16.75/100) -> 8195.105 | O7: =IF('%5 imalat'!$B7>$B$16,$B$16*0.02,'%5 imalat'!$B7*0.02) -> 978.52 | P7: =B7+'%5 imalat'!$N7+'%5 imalat'!$O7 -> 58099.625
A8: Temmuz | B8: 48926 | C8: 6849.64 | D8: 489.26 | E8: 41587.1 | F8: 291109.7 | G8: =HesaplaGV(E8,F8) -> 8317.42 | H8: 371.34834 | I8: 4537.75 | J8: 250.7 | K8: 3779.67 | L8: 120.64834 | M8: 37686.78166 | N8: =IF('%5 imalat'!$B8>$B$16,$B$16*16.75/100,'%5 imalat'!$B8*16.75/100) -> 8195.105 | O8: =IF('%5 imalat'!$B8>$B$16,$B$16*0.02,'%5 imalat'!$B8*0.02) -> 978.52 | P8: =B8+'%5 imalat'!$N8+'%5 imalat'!$O8 -> 58099.625
A9: Ağustos | B9: 48926 | C9: 6849.64 | D9: 489.26 | E9: 41587.1 | F9: 332696.8 | G9: =HesaplaGV(E9,F9) -> 8317.42 | H9: 371.34834 | I9: 5615.1 | J9: 250.7 | K9: 2702.32 | L9: 120.64834 | M9: 38764.13166 | N9: =IF('%5 imalat'!$B9>$B$16,$B$16*16.75/100,'%5 imalat'!$B9*16.75/100) -> 8195.105 | O9: =IF('%5 imalat'!$B9>$B$16,$B$16*0.02,'%5 imalat'!$B9*0.02) -> 978.52 | P9: =B9+'%5 imalat'!$N9+'%5 imalat'!$O9 -> 58099.625
A10: Eylül | B10: 48926 | C10: 6849.64 | D10: 489.26 | E10: 41587.1 | F10: 374283.9 | G10: =HesaplaGV(E10,F10) -> 8317.42 | H10: 371.34834 | I10: 5615.1 | J10: 250.7 | K10: 2702.32 | L10: 120.64834 | M10: 38764.13166 | N10: =IF('%5 imalat'!$B10>$B$16,$B$16*16.75/100,'%5 imalat'!$B10*16.75/100) -> 8195.105 | O10: =IF('%5 imalat'!$B10>$B$16,$B$16*0.02,'%5 imalat'!$B10*0.02) -> 978.52 | P10: =B10+'%5 imalat'!$N10+'%5 imalat'!$O10 -> 58099.625
A11: Ekim | B11: 48926 | C11: 6849.64 | D11: 489.26 | E11: 41587.1 | F11: 415871 | G11: =HesaplaGV(E11,F11) -> 9428.39 | H11: 371.34834 | I11: 5615.1 | J11: 250.7 | K11: 3813.29 | L11: 120.64834 | M11: 37653.16166 | N11: =IF('%5 imalat'!$B11>$B$16,$B$16*16.75/100,'%5 imalat'!$B11*16.75/100) -> 8195.105 | O11: =IF('%5 imalat'!$B11>$B$16,$B$16*0.02,'%5 imalat'!$B11*0.02) -> 978.52 | P11: =B11+'%5 imalat'!$N11+'%5 imalat'!$O11 -> 58099.625
A12: Kasım | B12: 48926 | C12: 6849.64 | D12: 489.26 | E12: 41587.1 | F12: 457458.1 | G12: =HesaplaGV(E12,F12) -> 11228.517 | H12: 371.34834 | I12: 5615.1 | J12: 250.7 | K12: 5613.417 | L12: 120.64834 | M12: 35853.03466 | N12: =IF('%5 imalat'!$B12>$B$16,$B$16*16.75/100,'%5 imalat'!$B12*16.75/100) -> 8195.105 | O12: =IF('%5 imalat'!$B12>$B$16,$B$16*0.02,'%5 imalat'!$B12*0.02) -> 978.52 | P12: =B12+'%5 imalat'!$N12+'%5 imalat'!$O12 -> 58099.625
A13: Aralık | B13: 48926 | C13: 6849.64 | D13: 489.26 | E13: 41587.1 | F13: 499045.2 | G13: =HesaplaGV(E13,F13) -> 11228.517 | H13: 371.34834 | I13: 5615.1 | J13: 250.7 | K13: 5613.417 | L13: 120.64834 | M13: 35853.03466 | N13: =IF('%5 imalat'!$B13>$B$16,$B$16*16.75/100,'%5 imalat'!$B13*16.75/100) -> 8195.105 | O13: =IF('%5 imalat'!$B13>$B$16,$B$16*0.02,'%5 imalat'!$B13*0.02) -> 978.52 | P13: =B13+'%5 imalat'!$N13+'%5 imalat'!$O13 -> 58099.625
A14: TOPLAM | B14: =SUBTOTAL(109,B2:B13) -> 587112 | C14: 82195.68 | D14: 5871.12 | E14: 499045.2 | F14: 3243793.8 | G14: 97242.204 | H14: 4456.18008 | I14: 57881.19 | J14: 3008.4 | K14: 39361.014 | L14: 1447.78008 | M14: 458236.4059 | N14: 98341.26 | O14: 11742.24 | P14: 697195.5
A16: sgk spek tavan | B16: =C16*9 -> 297270 | C16: 33030 | E16: hedef net | F16: 90000 | N16: aylık ortalama maliyet | P16: =P14/12 -> 58099.625
A18: sektör | B18: işvren prim oranı | C18: aylık ortalama maliyet
A19: imalat | B19: 0.1675 | C19: =P16 -> 58099.625
A20: diğer | B20: 0.1975
A21: indirimsiz | B21: 0.2175

Sheet %2 diğer sektör
A1: dönem | B1: Brüt | C1: SSK İşçi | D1: İşsizlik İşçi | E1: Gelir Vegisi Matrahı | F1: Kümülatif GV Toplamı | G1: Hes Gelir Vergisi | H1: Hes Damga Vergisi | I1: asgari ücretin gelir vergisi | J1: asgari ücretin damga vergisi | K1: ödenecek gv | L1: ödenecek damga v | M1: Net | N1: SSK İşveren | O1: İşsizlik İşveren | P1: Toplam Maliyet
A2: Ocak | B2: 133636.3738 | C2: =IF(B2>$B$16,$B$16*0.14,B2*0.14) -> 18709.09233 | D2: =IF(B2>$B$16,$B$16*0.01,B2*0.01) -> 1336.363738 | E2: =B2-C2-D2 -> 113590.9177 | F2: =E2 -> 113590.9177 | G2: =HesaplaGV(E2,F2) -> 17038.63766 | H2: =B2*7.59/1000 -> 1014.300077 | I2: 4211.32 | J2: 250.7 | K2: =G2-I2 -> 12827.31766 | L2: =H2-J2 -> 763.6000772 | M2: =B2-C2-D2-K2-L2 -> 100000 | N2: =IF('%2 diğer sektör'!$B2>$B$16,$B$16*19.75/100,'%2 diğer sektör'!$B2*19.75/100) -> 26393.18383 | O2: =IF('%2 diğer sektör'!$B2>$B$16,$B$16*0.02,'%2 diğer sektör'!$B2*0.02) -> 2672.727476 | P2: =B2+'%2 diğer sektör'!$N2+'%2 diğer sektör'!$O2 -> 162702.2851
A3: Şubat | B3: 136401.1777 | C3: 19096.16488 | D3: =IF(B3>$B$16,$B$16*0.01,B3*0.01) -> 1364.011777 | E3: =B3-C3-D3 -> 115941.001 | F3: =F2+E3 -> 229531.9188 | G3: =HesaplaGV(E3,F3) -> 19367.74609 | H3: =B3*7.59/1000 -> 1035.284939 | I3: 4211.33 | J3: 250.7 | K3: =G3-I3 -> 15156.41609 | L3: 784.5849386 | M3: =B3-C3-D3-K3-L3 -> 100000 | N3: =IF('%2 diğer sektör'!$B3>$B$16,$B$16*19.75/100,'%2 diğer sektör'!$B3*19.75/100) -> 26939.23259 | O3: =IF('%2 diğer sektör'!$B3>$B$16,$B$16*0.02,'%2 diğer sektör'!$B3*0.02) -> 2728.023554 | P3: =B3+'%2 diğer sektör'!$N3+'%2 diğer sektör'!$O3 -> 166068.4338
A4: Mart | B4: 142082.9256 | C4: 19891.60958 | D4: 1420.829256 | E4: 120770.4868 | F4: =F3+E4 -> 350302.4055 | G4: =HesaplaGV(E4,F4) -> 24154.09735 | H4: 1078.409405 | I4: 4211.32 | J4: 250.7 | K4: 19942.77735 | L4: 827.7094053 | M4: 100000 | N4: =IF('%2 diğer sektör'!$B4>$B$16,$B$16*19.75/100,'%2 diğer sektör'!$B4*19.75/100) -> 28061.37781 | O4: =IF('%2 diğer sektör'!$B4>$B$16,$B$16*0.02,'%2 diğer sektör'!$B4*0.02) -> 2841.658512 | P4: =B4+'%2 diğer sektör'!$N4+'%2 diğer sektör'!$O4 -> 172985.9619
A5: Nisan | B5: 150200.092 | C5: 21028.01288 | D5: 1502.00092 | E5: 127670.0782 | F5: 477972.4837 | G5: =HesaplaGV(E5,F5) -> 30992.0895 | H5: 1140.018698 | I5: 4211.33 | J5: 250.7 | K5: 26780.7595 | L5: 889.3186983 | M5: 100000 | N5: =IF('%2 diğer sektör'!$B5>$B$16,$B$16*19.75/100,'%2 diğer sektör'!$B5*19.75/100) -> 29664.51817 | O5: =IF('%2 diğer sektör'!$B5>$B$16,$B$16*0.02,'%2 diğer sektör'!$B5*0.02) -> 3004.00184 | P5: =B5+'%2 diğer sektör'!$N5+'%2 diğer sektör'!$O5 -> 182868.612
A6: Mayıs | B6: 155876.034 | C6: 21822.64476 | D6: 1558.76034 | E6: 132494.6289 | F6: 610467.1126 | G6: =HesaplaGV(E6,F6) -> 35773.5498 | H6: 1183.099098 | I6: 4211.32 | J6: 250.7 | K6: 31562.2298 | L6: 932.3990981 | M6: =B6-C6-D6-K6-L6 -> 100000 | N6: =IF('%2 diğer sektör'!$B6>$B$16,$B$16*19.75/100,'%2 diğer sektör'!$B6*19.75/100) -> 30785.51672 | O6: =IF('%2 diğer sektör'!$B6>$B$16,$B$16*0.02,'%2 diğer sektör'!$B6*0.02) -> 3117.52068 | P6: =B6+'%2 diğer sektör'!$N6+'%2 diğer sektör'!$O6 -> 189779.0714
A7: Haziran | B7: 155876.034 | C7: 21822.64476 | D7: 1558.76034 | E7: 132494.6289 | F7: 742961.7415 | G7: =HesaplaGV(E7,F7) -> 35773.5498 | H7: 1183.099098 | I7: 4211.32 | J7: 250.7 | K7: 31562.2298 | L7: 932.3990981 | M7: 100000 | N7: =IF('%2 diğer sektör'!$B7>$B$16,$B$16*19.75/100,'%2 diğer sektör'!$B7*19.75/100) -> 30785.51672 | O7: =IF('%2 diğer sektör'!$B7>$B$16,$B$16*0.02,'%2 diğer sektör'!$B7*0.02) -> 3117.52068 | P7: =B7+'%2 diğer sektör'!$N7+'%2 diğer sektör'!$O7 -> 189779.0714
A8: Temmuz | B8: 155343.4436 | C8: 21748.0821 | D8: 1553.434436 | E8: 132041.927 | F8: 875003.6686 | G8: =HesaplaGV(E8,F8) -> 35651.3203 | H8: 1179.056737 | I8: 4537.75 | J8: 250.7 | K8: 31113.5703 | L8: 928.3567367 | M8: 100000 | N8: =IF('%2 diğer sektör'!$B8>$B$16,$B$16*19.75/100,'%2 diğer sektör'!$B8*19.75/100) -> 30680.33011 | O8: =IF('%2 diğer sektör'!$B8>$B$16,$B$16*0.02,'%2 diğer sektör'!$B8*0.02) -> 3106.868871 | P8: =B8+'%2 diğer sektör'!$N8+'%2 diğer sektör'!$O8 -> 189130.6425
A9: Ağustos | B9: 153585.6814 | C9: 21501.9954 | D9: 1535.856814 | E9: 130547.8292 | F9: 1005551.498 | G9: =HesaplaGV(E9,F9) -> 35247.91389 | H9: 1165.715322 | I9: 5615.1 | J9: 250.7 | K9: 29632.81389 | L9: 915.015322 | M9: 100000 | N9: =IF('%2 diğer sektör'!$B9>$B$16,$B$16*19.75/100,'%2 diğer sektör'!$B9*19.75/100) -> 30333.17208 | O9: =IF('%2 diğer sektör'!$B9>$B$16,$B$16*0.02,'%2 diğer sektör'!$B9*0.02) -> 3071.713628 | P9: =B9+'%2 diğer sektör'!$N9+'%2 diğer sektör'!$O9 -> 186990.5671
A10: Eylül | B10: 153585.6814 | C10: 21501.9954 | D10: 1535.856814 | E10: 130547.8292 | F10: 1136099.327 | G10: =HesaplaGV(E10,F10) -> 35247.91389 | H10: 1165.715322 | I10: 5615.1 | J10: 250.7 | K10: 29632.81389 | L10: 915.015322 | M10: 100000 | N10: =IF('%2 diğer sektör'!$B10>$B$16,$B$16*19.75/100,'%2 diğer sektör'!$B10*19.75/100) -> 30333.17208 | O10: =IF('%2 diğer sektör'!$B10>$B$16,$B$16*0.02,'%2 diğer sektör'!$B10*0.02) -> 3071.713628 | P10: =B10+'%2 diğer sektör'!$N10+'%2 diğer sektör'!$O10 -> 186990.5671
A11: Ekim | B11: 153585.6814 | C11: 21501.9954 | D11: 1535.856814 | E11: 130547.8292 | F11: 1266647.156 | G11: =HesaplaGV(E11,F11) -> 35247.91389 | H11: 1165.715322 | I11: 5615.1 | J11: 250.7 | K11: 29632.81389 | L11: 915.015322 | M11: 100000 | N11: =IF('%2 diğer sektör'!$B11>$B$16,$B$16*19.75/100,'%2 diğer sektör'!$B11*19.75/100) -> 30333.17208 | O11: =IF('%2 diğer sektör'!$B11>$B$16,$B$16*0.02,'%2 diğer sektör'!$B11*0.02) -> 3071.713628 | P11: =B11+'%2 diğer sektör'!$N11+'%2 diğer sektör'!$O11 -> 186990.5671
A12: Kasım | B12: 153585.6814 | C12: 21501.9954 | D12: 1535.856814 | E12: 130547.8292 | F12: 1397194.985 | G12: =HesaplaGV(E12,F12) -> 35247.91389 | H12: 1165.715322 | I12: 5615.1 | J12: 250.7 | K12: 29632.81389 | L12: 915.015322 | M12: 100000 | N12: =IF('%2 diğer sektör'!$B12>$B$16,$B$16*19.75/100,'%2 diğer sektör'!$B12*19.75/100) -> 30333.17208 | O12: =IF('%2 diğer sektör'!$B12>$B$16,$B$16*0.02,'%2 diğer sektör'!$B12*0.02) -> 3071.713628 | P12: =B12+'%2 diğer sektör'!$N12+'%2 diğer sektör'!$O12 -> 186990.5671
A13: Aralık | B13: 157658.6938 | C13: 22072.21713 | D13: 1576.586938 | E13: 134009.8897 | F13: 1531204.875 | G13: =HesaplaGV(E13,F13) -> 38679.06023 | H13: 1196.629486 | I13: 5615.1 | J13: 250.7 | K13: 33063.96023 | L13: 945.9294858 | M13: 100000 | N13: =IF('%2 diğer sektör'!$B13>$B$16,$B$16*19.75/100,'%2 diğer sektör'!$B13*19.75/100) -> 31137.59202 | O13: =IF('%2 diğer sektör'!$B13>$B$16,$B$16*0.02,'%2 diğer sektör'!$B13*0.02) -> 3153.173876 | P13: =B13+'%2 diğer sektör'!$N13+'%2 diğer sektör'!$O13 -> 191949.4597
A14: TOPLAM | B14: =SUBTOTAL(109,B2:B13) -> 1801417.5 | C14: 252198.45 | D14: 18014.175 | E14: 1531204.875 | F14: 9736528.09 | G14: 378421.7063 | H14: 13672.75883 | I14: 57881.19 | J14: 3008.4 | K14: 320540.5163 | L14: 10664.35883 | M14: 1200000 | N14: 355779.9563 | O14: 36028.35 | P14: 2193225.806
A16: sgk spek tavan | B16: =C16*9 -> 297270 | C16: 33030 | E16: hedef net | F16: 100000 | P16: =P14/12 -> 182768.8172
A18: sektör | B18: işvren prim oranı
A19: imalat | B19: 0.1675
A20: diğer | B20: 0.1975
A21: indirimsiz | B21: 0.2175

Sheet %0 indirim
A1: dönem | B1: Brüt | C1: SSK İşçi | D1: İşsizlik İşçi | E1: Gelir Vegisi Matrahı | F1: Kümülatif GV Toplamı | G1: Hes Gelir Vergisi | H1: Hes Damga Vergisi | I1: asgari ücretin gelir vergisi | J1: asgari ücretin damga vergisi | K1: ödenecek gv | L1: ödenecek damga v | M1: Net | N1: SSK İşveren | O1: İşsizlik İşveren | P1: Toplam Maliyet
A2: Ocak | B2: 48926 | C2: =IF(B2>$B$16,$B$16*0.14,B2*0.14) -> 6849.64 | D2: =IF(B2>$B$16,$B$16*0.01,B2*0.01) -> 489.26 | E2: =B2-C2-D2 -> 41587.1 | F2: =E2 -> 41587.1 | G2: =HesaplaGV(E2,F2) -> 6238.065 | H2: =B2*7.59/1000 -> 371.34834 | I2: 4211.32 | J2: 250.7 | K2: =G2-I2 -> 2026.745 | L2: =H2-J2 -> 120.64834 | M2: =B2-C2-D2-K2-L2 -> 39439.70666 | N2: =IF('%0 indirim'!$B2>$B$16,$B$16*21.75/100,'%0 indirim'!$B2*21.75/100) -> 10641.405 | O2: =IF('%0 indirim'!$B2>$B$16,$B$16*0.02,'%0 indirim'!$B2*0.02) -> 978.52 | P2: =B2+'%0 indirim'!$N2+'%0 indirim'!$O2 -> 60545.925
A3: Şubat | B3: 48926 | C3: 6849.64 | D3: =IF(B3>$B$16,$B$16*0.01,B3*0.01) -> 489.26 | E3: =B3-C3-D3 -> 41587.1 | F3: =F2+E3 -> 83174.2 | G3: =HesaplaGV(E3,F3) -> 6238.065 | H3: =B3*7.59/1000 -> 371.34834 | I3: 4211.33 | J3: 250.7 | K3: =G3-I3 -> 2026.735 | L3: 120.64834 | M3: =B3-C3-D3-K3-L3 -> 39439.71666 | N3: =IF('%0 indirim'!$B3>$B$16,$B$16*21.75/100,'%0 indirim'!$B3*21.75/100) -> 10641.405 | O3: =IF('%0 indirim'!$B3>$B$16,$B$16*0.02,'%0 indirim'!$B3*0.02) -> 978.52 | P3: =B3+'%0 indirim'!$N3+'%0 indirim'!$O3 -> 60545.925
A4: Mart | B4: 48926 | C4: 6849.64 | D4: 489.26 | E4: 41587.1 | F4: =F3+E4 -> 124761.3 | G4: =HesaplaGV(E4,F4) -> 6238.065 | H4: 371.34834 | I4: 4211.32 | J4: 250.7 | K4: 2026.745 | L4: 120.64834 | M4: 39439.70666 | N4: =IF('%0 indirim'!$B4>$B$16,$B$16*21.75/100,'%0 indirim'!$B4*21.75/100) -> 10641.405 | O4: =IF('%0 indirim'!$B4>$B$16,$B$16*0.02,'%0 indirim'!$B4*0.02) -> 978.52 | P4: =B4+'%0 indirim'!$N4+'%0 indirim'!$O4 -> 60545.925
A5: Nisan | B5: 48926 | C5: 6849.64 | D5: 489.26 | E5: 41587.1 | F5: 166348.4 | G5: =HesaplaGV(E5,F5) -> 6238.065 | H5: 371.34834 | I5: 4211.33 | J5: 250.7 | K5: 2026.735 | L5: 120.64834 | M5: 39439.71666 | N5: =IF('%0 indirim'!$B5>$B$16,$B$16*21.75/100,'%0 indirim'!$B5*21.75/100) -> 10641.405 | O5: =IF('%0 indirim'!$B5>$B$16,$B$16*0.02,'%0 indirim'!$B5*0.02) -> 978.52 | P5: =B5+'%0 indirim'!$N5+'%0 indirim'!$O5 -> 60545.925
A6: Mayıs | B6: 48926 | C6: 6849.64 | D6: 489.26 | E6: 41587.1 | F6: 207935.5 | G6: =HesaplaGV(E6,F6) -> 7134.84 | H6: 371.34834 | I6: 4211.32 | J6: 250.7 | K6: 2923.52 | L6: 120.64834 | M6: 38542.93166 | N6: =IF('%0 indirim'!$B6>$B$16,$B$16*21.75/100,'%0 indirim'!$B6*21.75/100) -> 10641.405 | O6: =IF('%0 indirim'!$B6>$B$16,$B$16*0.02,'%0 indirim'!$B6*0.02) -> 978.52 | P6: =B6+'%0 indirim'!$N6+'%0 indirim'!$O6 -> 60545.925
A7: Haziran | B7: 48926 | C7: 6849.64 | D7: 489.26 | E7: 41587.1 | F7: 249522.6 | G7: =HesaplaGV(E7,F7) -> 8317.42 | H7: 371.34834 | I7: 4211.32 | J7: 250.7 | K7: 4106.1 | L7: 120.64834 | M7: 37360.35166 | N7: =IF('%0 indirim'!$B7>$B$16,$B$16*21.75/100,'%0 indirim'!$B7*21.75/100) -> 10641.405 | O7: =IF('%0 indirim'!$B7>$B$16,$B$16*0.02,'%0 indirim'!$B7*0.02) -> 978.52 | P7: =B7+'%0 indirim'!$N7+'%0 indirim'!$O7 -> 60545.925
A8: Temmuz | B8: 48926 | C8: 6849.64 | D8: 489.26 | E8: 41587.1 | F8: 291109.7 | G8: =HesaplaGV(E8,F8) -> 8317.42 | H8: 371.34834 | I8: 4537.75 | J8: 250.7 | K8: 3779.67 | L8: 120.64834 | M8: 37686.78166 | N8: =IF('%0 indirim'!$B8>$B$16,$B$16*21.75/100,'%0 indirim'!$B8*21.75/100) -> 10641.405 | O8: =IF('%0 indirim'!$B8>$B$16,$B$16*0.02,'%0 indirim'!$B8*0.02) -> 978.52 | P8: =B8+'%0 indirim'!$N8+'%0 indirim'!$O8 -> 60545.925
A9: Ağustos | B9: 48926 | C9: 6849.64 | D9: 489.26 | E9: 41587.1 | F9: 332696.8 | G9: =HesaplaGV(E9,F9) -> 8317.42 | H9: 371.34834 | I9: 5615.1 | J9: 250.7 | K9: 2702.32 | L9: 120.64834 | M9: 38764.13166 | N9: =IF('%0 indirim'!$B9>$B$16,$B$16*21.75/100,'%0 indirim'!$B9*21.75/100) -> 10641.405 | O9: =IF('%0 indirim'!$B9>$B$16,$B$16*0.02,'%0 indirim'!$B9*0.02) -> 978.52 | P9: =B9+'%0 indirim'!$N9+'%0 indirim'!$O9 -> 60545.925
A10: Eylül | B10: 48926 | C10: 6849.64 | D10: 489.26 | E10: 41587.1 | F10: 374283.9 | G10: =HesaplaGV(E10,F10) -> 8317.42 | H10: 371.34834 | I10: 5615.1 | J10: 250.7 | K10: 2702.32 | L10: 120.64834 | M10: 38764.13166 | N10: =IF('%0 indirim'!$B10>$B$16,$B$16*21.75/100,'%0 indirim'!$B10*21.75/100) -> 10641.405 | O10: =IF('%0 indirim'!$B10>$B$16,$B$16*0.02,'%0 indirim'!$B10*0.02) -> 978.52 | P10: =B10+'%0 indirim'!$N10+'%0 indirim'!$O10 -> 60545.925
A11: Ekim | B11: 48926 | C11: 6849.64 | D11: 489.26 | E11: 41587.1 | F11: 415871 | G11: =HesaplaGV(E11,F11) -> 9428.39 | H11: 371.34834 | I11: 5615.1 | J11: 250.7 | K11: 3813.29 | L11: 120.64834 | M11: 37653.16166 | N11: =IF('%0 indirim'!$B11>$B$16,$B$16*21.75/100,'%0 indirim'!$B11*21.75/100) -> 10641.405 | O11: =IF('%0 indirim'!$B11>$B$16,$B$16*0.02,'%0 indirim'!$B11*0.02) -> 978.52 | P11: =B11+'%0 indirim'!$N11+'%0 indirim'!$O11 -> 60545.925
A12: Kasım | B12: 48926 | C12: 6849.64 | D12: 489.26 | E12: 41587.1 | F12: 457458.1 | G12: =HesaplaGV(E12,F12) -> 11228.517 | H12: 371.34834 | I12: 5615.1 | J12: 250.7 | K12: 5613.417 | L12: 120.64834 | M12: 35853.03466 | N12: =IF('%0 indirim'!$B12>$B$16,$B$16*21.75/100,'%0 indirim'!$B12*21.75/100) -> 10641.405 | O12: =IF('%0 indirim'!$B12>$B$16,$B$16*0.02,'%0 indirim'!$B12*0.02) -> 978.52 | P12: =B12+'%0 indirim'!$N12+'%0 indirim'!$O12 -> 60545.925
A13: Aralık | B13: 48926 | C13: 6849.64 | D13: 489.26 | E13: 41587.1 | F13: 499045.2 | G13: =HesaplaGV(E13,F13) -> 11228.517 | H13: 371.34834 | I13: 5615.1 | J13: 250.7 | K13: 5613.417 | L13: 120.64834 | M13: 35853.03466 | N13: =IF('%0 indirim'!$B13>$B$16,$B$16*21.75/100,'%0 indirim'!$B13*21.75/100) -> 10641.405 | O13: =IF('%0 indirim'!$B13>$B$16,$B$16*0.02,'%0 indirim'!$B13*0.02) -> 978.52 | P13: =B13+'%0 indirim'!$N13+'%0 indirim'!$O13 -> 60545.925
A14: TOPLAM | B14: =SUBTOTAL(109,B2:B13) -> 587112 | C14: 82195.68 | D14: 5871.12 | E14: 499045.2 | F14: 3243793.8 | G14: 97242.204 | H14: 4456.18008 | I14: 57881.19 | J14: 3008.4 | K14: 39361.014 | L14: 1447.78008 | M14: 458236.4059 | N14: 127696.86 | O14: 11742.24 | P14: 726551.1
A16: sgk spek tavan | B16: =C16*9 -> 297270 | C16: 33030 | E16: hedef net | F16: 45659 | P16: =P14/12 -> 60545.925
A18: sektör | B18: işvren prim oranı
A19: imalat | B19: 0.1675
A20: diğer | B20: 0.1975
A21: indirimsiz | B21: 0.2175

Sheet dilim
A1: A (Üst Sınır) | B1: B (Oran)
A2: 190000 | B2: 0.15
A3: 400000 | B3: 0.2
A4: 1500000 | B4: 0.27
A5: 5300000 | B5: 0.35
A6: 5300000 | B6: 0.4
